fUST/lending_fUST_20240124
["ID","MTS","AMOUNT","RATE_DAILY","PERIOD"]
[312593027,1706041843587,-788.01,0.00041095,31]
[312593028,1706041843597,-788.01,0.00041095,31]
[312593029,1706041843606,-500.0,0.00041095,31]
[312593030,1706041843615,-788.01,0.00041095,31]
[312593031,1706041843625,-788.01,0.00041095,31]
[312593032,1706041843634,-788.01,0.00041095,31]
[312593033,1706041843644,-788.01,0.00041095,31]
[312593034,1706041843653,-500.0,0.00041095,31]
[312593035,1706041843663,-788.01,0.00041095,31]
[312593036,1706041843672,-185.74831423,0.00041095,7]
[312593037,1706041843682,-788.01,0.00041095,31]
[312593038,1706041843692,-500.0,0.00041095,31]
[312593039,1706041843701,-788.01,0.00041095,31]
[312593040,1706041843711,-788.01,0.00041095,31]
[312593041,1706041843719,-788.01,0.00041095,31]
[312593042,1706041843729,-500.0,0.00041095,31]
[312593043,1706041843738,-500.0,0.00041095,31]
[312593044,1706041843747,-1895.37,0.00041095,31]
[312593045,1706041843757,-1400.01,0.00041095,31]
[312593046,1706041843766,-464.1836838,0.00041095,31]
[312593047,1706041843775,-771.2,0.00041095,31]
[312593048,1706041843784,-500.0,0.00041095,31]
[312593049,1706041843794,-500.0,0.00041095,31]
[312593050,1706041843803,-500.0,0.00041095,31]
[312593051,1706041843812,-500.0,0.00041095,31]
[312593052,1706041843822,-357.27707893,0.00041095,31]
[312593053,1706041843831,-500.0,0.00041095,31]
[312593054,1706041843840,-500.0,0.00041095,31]
[312593055,1706041843850,-2698.38,0.00041095,31]
[312593056,1706041843859,-500.0,0.00041095,31]
[312593057,1706041843869,-1369.59,0.00041095,31]
[312593058,1706041843878,-500.0,0.00041095,31]
[312593059,1706041843887,-3557.63,0.00041095,31]
[312593060,1706041843896,-500.0,0.00041095,31]
[312593061,1706041843905,-1335.76,0.00041095,31]
[312593062,1706041843915,-500.0,0.00041095,31]
[312593063,1706041843924,-500.0,0.00041095,31]
[312593064,1706041843933,-502.66935976,0.00041095,31]
[312593065,1706041843943,-500.0,0.00041095,31]
[312593066,1706041843953,-3538.1,0.00041095,31]
[312593067,1706041843963,-500.0,0.00041095,31]
[312593068,1706041843972,-500.0,0.00041095,31]
[312593069,1706041843981,-500.0,0.00041095,31]
[312593070,1706041843990,-473.19363087,0.00041095,31]
[312593071,1706041844000,-182.96013886,0.00041095,31]
[312593072,1706041844009,-500.0,0.00041095,31]
[312593073,1706041844018,-705.53,0.00041095,31]
[312593074,1706041844028,-501.49204864,0.00041095,31]
[312593075,1706041844037,-762.22,0.00041095,31]
[312593076,1706041844046,-500.0,0.00041095,31]
[312593077,1706041844056,-500.0,0.00041095,31]
[312593078,1706041844065,-500.0,0.00041095,31]
[312593079,1706041844074,-500.0,0.00041095,31]
[312593080,1706041844083,-500.0,0.00041095,31]
[312593081,1706041844092,-500.0,0.00041095,31]
[312593082,1706041844102,-2889.57,0.00041095,31]
[312593083,1706041844111,-500.0,0.00041095,31]
[312593084,1706041844120,-500.0,0.00041095,31]
[312593085,1706041844129,-500.0,0.00041095,31]
[312593086,1706041844138,-233.44690638,0.00041095,31]
[312593087,1706041844148,-501.79854839,0.00041095,31]
[312593088,1706041844157,-500.0,0.00041095,31]
[312593089,1706041844166,-512.52391215,0.00041095,31]
[312593090,1706041844176,-1798.68,0.00041095,31]
[312593091,1706041844185,-501.91343796,0.00041095,31]
[312593092,1706041844195,-500.0,0.00041095,31]
[312593093,1706041844204,-500.0,0.00041095,31]
[312593094,1706041844214,-10951.71,0.00041095,31]
[312593095,1706041844223,-500.0,0.00041095,31]
[312593096,1706041844233,-525.97,0.00041095,31]
[312593097,1706041844243,-500.0,0.00041095,31]
[312593098,1706041844252,-500.0,0.00041095,31]
[312593099,1706041844261,-246.26787996,0.00041095,31]
[312593100,1706041844270,-500.0,0.00041095,31]
[312593101,1706041844279,-500.0,0.00041095,31]
[312593102,1706041844288,-500.0,0.00041095,31]
[312593103,1706041844298,-500.0,0.00041095,31]
[312593104,1706041844306,-811.17,0.00041095,31]
[312593105,1706041844315,-500.0,0.00041095,31]
[312593106,1706041844325,-500.0,0.00041095,31]
[312593107,1706041844334,-783.66,0.00041095,31]
[312593108,1706041844344,-1574.5,0.00041095,31]
[312593109,1706041844354,-500.0,0.00041095,31]
[312593110,1706041844363,-1000.0,0.00041095,2]
[312593111,1706041844372,-500.0,0.00041095,31]
[312593112,1706041844382,-500.0,0.00041095,31]
[312593113,1706041844392,-1411.58,0.00041095,31]
[312593114,1706041844402,-500.0,0.00041095,31]
[312593115,1706041844414,-517.53,0.00041095,31]
[312593116,1706041844424,-500.0,0.00041095,31]
[312593117,1706041844434,-595.67026586,0.00041095,31]
[312593118,1706041844445,-403.75474858,0.00041095,31]
[312593119,1706041844454,-27230.4,0.00041095,14]
[312593120,1706041844463,-500.0,0.00041095,31]
[312593121,1706041844473,-500.0,0.00041095,31]
[312593122,1706041844483,-1666.77,0.00041095,31]
[312593123,1706041844493,-500.0,0.00041095,31]
[312593124,1706041844502,-168.25549174,0.00041095,31]
[312593125,1706041844512,-168.36859167,0.00041095,31]
[312593126,1706041844521,-500.0,0.00041095,31]
[312593127,1706041844531,-500.0,0.00041095,31]
[312593128,1706041844541,-500.0,0.00041095,31]
[312593129,1706041844550,-1637.84,0.00041095,31]
[312593130,1706041844560,-500.0,0.00041095,31]
[312593131,1706041844569,-500.0,0.00041095,31]
[312593132,1706041844579,-500.0,0.00041095,31]
[312593133,1706041844588,-698.21,0.00041095,31]
[312593134,1706041844598,-959.88,0.00041095,31]
[312593135,1706041844608,-500.0,0.00041095,31]
[312593136,1706041844618,-500.0,0.00041095,31]
[312593137,1706041844627,-500.0,0.00041095,31]
[312593138,1706041844637,-500.0,0.00041095,31]
[312593139,1706041844647,-503.47676776,0.00041095,31]
[312593140,1706041844656,-515.33,0.00041095,31]
[312593141,1706041844666,-356.12473339,0.00041095,31]
[312593142,1706041844675,-585.0,0.00041095,31]
[312593143,1706041844685,-500.0,0.00041095,31]
[312593144,1706041844776,-500.0,0.00041095,31]
[312593145,1706041844786,-500.0,0.00041095,31]
[312593146,1706041844795,-849.47,0.00041095,31]
[312593147,1706041844804,-500.0,0.00041095,31]
[312593148,1706041844813,-500.0,0.00041095,31]
[312593149,1706041844822,-500.0,0.00041095,31]
[312593150,1706041844831,-500.0,0.00041095,31]
[312593151,1706041844840,-500.0,0.00041095,31]
[312593152,1706041844850,-500.0,0.00041095,31]
[312593153,1706041844859,-636.8,0.00041095,31]
[312593154,1706041844868,-504.46543144,0.00041095,31]
[312593155,1706041844877,-500.0,0.00041095,31]
[312593156,1706041844886,-533.75,0.00041095,31]
[312593157,1706041844896,-710.71,0.00041095,31]
[312593158,1706041844905,-500.0,0.00041095,31]
[312593159,1706041844915,-500.0,0.00041095,31]
[312593160,1706041844925,-500.0,0.00041095,31]
[312593161,1706041844934,-500.0,0.00041095,31]
[312593162,1706041844944,-436.85697401,0.00041095,31]
[312593163,1706041844953,-500.0,0.00041095,31]
[312593164,1706041844963,-500.0,0.00041095,31]
[312593165,1706041844972,-500.0,0.00041095,31]
[312593166,1706041844981,-1926.34,0.00041095,31]
[312593167,1706041844990,-4351.43,0.00041095,31]
[312593168,1706041845000,-699.11,0.00041095,31]
[312593169,1706041845010,-151.0,0.00041095,2]
[312593170,1706041845019,-1514.621105,0.00041095,2]
[312593171,1706041845029,-151.0,0.00041095,2]
[312593172,1706041845038,-240.49139,0.00041095,2]
[312593173,1706041845047,-240.49139,0.00041095,2]
[312593174,1706041845057,-240.49139,0.00041095,2]
[312593175,1706041845067,-240.49139,0.00041095,2]
[312593176,1706041845077,-240.49139,0.00041095,2]
[312593177,1706041845087,-240.49139,0.00041095,2]
[312593178,1706041845096,-240.49139,0.00041095,2]
[312593179,1706041845106,-240.49139,0.00041095,2]
[312593180,1706041845116,-151.0,0.00041095,2]
[312593181,1706041845125,-151.0,0.00041095,2]
[312593182,1706041845135,-151.0,0.00041095,2]
[312593183,1706041845145,-151.0,0.00041095,2]
[312593184,1706041845154,-151.0,0.00041095,2]
[312593185,1706041845165,-151.0,0.00041095,2]
[312593186,1706041845175,-151.0,0.00041095,2]
[312593187,1706041845185,-825.016884,0.00041095,2]
[312593188,1706041845194,-825.016884,0.00041095,2]
[312593189,1706041845204,-825.016884,0.00041095,2]
[312593190,1706041845214,-825.016884,0.00041095,2]
[312593191,1706041845223,-825.016884,0.00041095,2]
[312593192,1706041845233,-825.016884,0.00041095,2]
[312593193,1706041845243,-825.016884,0.00041095,2]
[312593194,1706041845253,-825.016884,0.00041095,2]
[312593195,1706041845262,-825.016884,0.00041095,2]
[312593196,1706041845272,-825.016884,0.00041095,2]
[312593197,1706041845282,-151.0,0.00041095,2]
[312593198,1706041845291,-151.0,0.00041095,2]
[312593199,1706041845300,-151.0,0.00041095,2]
[312593201,1706041845310,-151.0,0.00041095,2]
[312593202,1706041845320,-156.037478,0.00041095,2]
[312593204,1706041845330,-3315.696444,0.00041095,2]
[312593205,1706041845340,-3315.696444,0.00041095,2]
[312593206,1706041845349,-3315.696444,0.00041095,2]
[312593207,1706041845358,-3315.696444,0.00041095,2]
[312593208,1706041845367,-3315.696444,0.00041095,2]
[312593209,1706041845377,-3315.696444,0.00041095,2]
[312593210,1706041845386,-3315.696444,0.00041095,2]
[312593211,1706041845396,-3315.696444,0.00041095,2]
[312593212,1706041845406,-262.402861,0.00041095,2]
[312593214,1706041845417,-262.402861,0.00041095,2]
[312593216,1706041845425,-262.402861,0.00041095,2]
[312593218,1706041845434,-262.402861,0.00041095,2]
[312593219,1706041845445,-262.402861,0.00041095,2]
[312593220,1706041845455,-262.402861,0.00041095,2]
[312593221,1706041845465,-262.402861,0.00041095,2]
[312593222,1706041845474,-262.402861,0.00041095,2]
[312593223,1706041845484,-262.402861,0.00041095,2]
[312593224,1706041845493,-262.402861,0.00041095,2]
[312593225,1706041845504,-265.743168,0.00041095,2]
[312593226,1706041845513,-176.5291802,0.00041096,2]
[312593227,1706041845522,-155.80532899,0.00041208,30]
[312593228,1706041845532,-166.60491387,0.00041241,30]
[312593229,1706041845542,-151.45185766,0.00041248,30]
[312593230,1706041845551,-188.0,0.00041269,14]
[312593231,1706041845560,-150.40004763,0.00041269,14]
[312593232,1706041845569,-150.40004763,0.00041269,14]
[312593233,1706041845578,-150.40004763,0.00041269,14]
[312593234,1706041845588,-150.40004763,0.00041269,14]
[312593235,1706041845597,-151.0,0.00041365,7]
[312593236,1706041845606,-3315.696444,0.00041365,7]
[312593237,1706041845615,-3315.696444,0.00041365,7]
[312593238,1706041845624,-500.0,0.00041367,31]
[312593239,1706041845633,-788.01,0.00041367,31]
[312593240,1706041845643,-161.94694653,0.00041368,30]
[312593241,1706041845652,-500.0,0.00041368,31]
[312593242,1706041845661,-382.68202548,0.00041368,31]
[312593243,1706041845670,-788.01,0.00041368,31]
[312593244,1706041845680,-788.01,0.00041368,31]
[312593245,1706041845689,-788.01,0.00041368,31]
[312593246,1706041845698,-788.01,0.00041368,31]
[312593247,1706041845708,-788.22431436,0.00041368,31]
[312593248,1706041845717,-500.0,0.00041369,31]
[312593250,1706041845726,-500.0,0.00041369,31]
[312593251,1706041845735,-500.0,0.00041369,31]
[312593252,1706041845744,-500.0,0.00041369,7]
[312593253,1706041845754,-500.0,0.00041369,31]
[312593254,1706041845763,-500.0,0.00041369,31]
[312593255,1706041845772,-500.0,0.00041369,31]
[312593256,1706041845781,-500.0,0.00041369,31]
[312593257,1706041845790,-511.42715573,0.00041369,31]
[312593258,1706041845799,-500.0,0.00041369,31]
[312593259,1706041845809,-966.82,0.00041369,31]
[312593260,1706041845818,-220.0,0.00041369,2]
[312593261,1706041845827,-500.0,0.00041369,7]
[312593262,1706041845837,-500.0,0.00041369,31]
[312593263,1706041845846,-500.0,0.00041369,31]
[312593264,1706041845856,-500.0,0.00041369,31]
[312593265,1706041845865,-1132.27,0.00041369,31]
[312593266,1706041845874,-200.0,0.00041369,14]
[312593267,1706041845884,-500.0,0.00041369,7]
[312593268,1706041845893,-760.42,0.00041369,31]
[312593269,1706041845903,-500.0,0.00041369,31]
[312593270,1706041845912,-205.7602121,0.00041369,31]
[312593271,1706041845921,-500.0,0.00041369,31]
[312593272,1706041845930,-500.0,0.00041369,31]
[312593273,1706041845939,-500.0,0.00041369,31]
[312593274,1706041845948,-200.0,0.00041369,31]
[312593275,1706041845958,-500.0,0.00041369,31]
[312593276,1706041845967,-500.0,0.00041369,31]
[312593277,1706041845976,-500.0,0.00041369,31]
[312593278,1706041845986,-597.98,0.00041369,31]
[312593279,1706041845996,-500.0,0.00041369,31]
[312593280,1706041846006,-500.0,0.00041369,31]
[312593281,1706041846016,-512.7064361,0.00041369,31]
[312593282,1706041846025,-623.2,0.00041369,31]
[312593283,1706041846035,-500.0,0.00041369,31]
[312593284,1706041846045,-500.0,0.00041369,31]
[312593285,1706041846055,-762.23,0.00041369,31]
[312593286,1706041846065,-474.54853374,0.00041369,31]
[312593287,1706041846075,-500.0,0.00041369,31]
[312593288,1706041846084,-500.0,0.00041369,31]
[312593289,1706041846094,-500.0,0.00041369,31]
[312593290,1706041846103,-500.0,0.00041369,2]
[312593291,1706041846112,-905.67,0.00041369,31]
[312593292,1706041846121,-500.0,0.00041369,31]
[312593293,1706041846130,-500.0,0.00041369,31]
[312593294,1706041846139,-501.55466975,0.00041369,31]
[312593295,1706041846148,-221.60056194,0.00041369,31]
[312593296,1706041846157,-500.0,0.00041369,31]
[312593298,1706041846166,-500.0,0.00041369,31]
[312593300,1706041846175,-500.0,0.00041369,31]
[312593301,1706041846184,-500.0,0.00041369,7]
[312593303,1706041846193,-500.0,0.00041369,31]
[312593305,1706041846202,-500.0,0.00041369,31]
[312593307,1706041846212,-500.0,0.00041369,31]
[312593309,1706041846220,-500.0,0.00041369,31]
[312593311,1706041846230,-500.0,0.00041369,31]
[312593312,1706041846239,-528.32,0.00041369,31]
[312593313,1706041846249,-500.0,0.00041369,31]
[312593314,1706041846258,-500.0,0.00041369,31]
[312593315,1706041846267,-500.0,0.00041369,31]
[312593316,1706041846277,-500.0,0.00041369,31]
[312593317,1706041846286,-500.0,0.00041369,31]
[312593318,1706041846296,-500.0,0.00041369,31]
[312593319,1706041846305,-500.0,0.00041369,31]
[312593320,1706041846315,-500.0,0.00041369,31]
[312593321,1706041846324,-507.04,0.00041369,31]
[312593322,1706041846333,-500.0,0.00041369,31]
[312593323,1706041846342,-500.0,0.00041369,31]
[312593324,1706041846351,-500.0,0.00041369,31]
[312593325,1706041846361,-1127.34,0.00041369,31]
[312593326,1706041846370,-500.0,0.00041369,31]
[312593327,1706041846380,-500.0,0.00041369,31]
[312593328,1706041846389,-500.0,0.00041369,31]
[312593329,1706041846400,-500.0,0.00041369,31]
[312593330,1706041846412,-500.0,0.00041369,31]
[312593331,1706041846422,-500.0,0.00041369,31]
[312593332,1706041846431,-500.0,0.00041369,31]
[312593333,1706041846441,-500.0,0.00041369,31]
[312593334,1706041846450,-500.0,0.00041369,31]
[312593335,1706041846461,-511.68679362,0.00041369,31]
[312593336,1706041846545,-501.48304703,0.00041369,31]
[312593337,1706041846555,-500.0,0.00041369,31]
[312593338,1706041846564,-500.0,0.00041369,31]
[312593339,1706041846574,-500.0,0.00041369,31]
[312593340,1706041846583,-500.0,0.00041369,31]
[312593341,1706041846592,-500.0,0.00041369,31]
[312593342,1706041846601,-352.16277512,0.00041369,31]
[312593343,1706041846611,-500.0,0.00041369,31]
[312593344,1706041846620,-500.0,0.00041369,31]
[312593345,1706041846629,-1000.0,0.00041369,2]
[312593346,1706041846639,-500.0,0.00041369,31]
[312593347,1706041846648,-500.0,0.00041369,31]
[312593348,1706041846657,-500.0,0.00041369,31]
[312593349,1706041846667,-500.0,0.00041369,31]
[312593350,1706041846675,-500.0,0.00041369,31]
[312593351,1706041846685,-500.0,0.00041369,31]
[312593352,1706041846694,-500.0,0.00041369,31]
[312593353,1706041846703,-500.0,0.00041369,31]
[312593354,1706041846712,-246.99032577,0.00041369,31]
[312593355,1706041846721,-500.0,0.00041369,31]
[312593356,1706041846731,-500.0,0.00041369,31]
[312593357,1706041846740,-502.36,0.00041369,31]
[312593358,1706041846749,-500.0,0.00041369,31]
[312593359,1706041846759,-500.0,0.00041369,31]
[312593360,1706041846768,-500.0,0.00041369,31]
[312593361,1706041846777,-500.0,0.00041369,31]
[312593362,1706041846786,-500.0,0.00041369,31]
[312593363,1706041846794,-500.0,0.00041369,31]
[312593364,1706041846804,-500.0,0.00041369,31]
[312593365,1706041846813,-510.42695868,0.00041369,31]
[312593366,1706041846822,-500.0,0.00041369,31]
[312593367,1706041846831,-1850.43,0.00041369,31]
[312593368,1706041846840,-537.86,0.00041369,31]
[312593369,1706041846849,-503.49238565,0.00041369,31]
[312593370,1706041846857,-671.22,0.00041369,31]
[312593371,1706041846866,-380.92643163,0.00041369,31]
[312593372,1706041846875,-246.46435968,0.00041369,31]
[312593373,1706041846884,-500.0,0.00041369,31]
[312593374,1706041846893,-297.05552429,0.00041369,31]
[312593375,1706041846902,-500.0,0.00041369,31]
[312593376,1706041846914,-583.10514427,0.00041369,31]
[312593377,1706041846924,-330.042858,0.00041369,31]
[312593378,1706041846934,-500.0,0.00041369,31]
[312593379,1706041846943,-500.0,0.00041369,31]
[312593380,1706041846952,-500.0,0.00041369,31]
[312593381,1706041846962,-500.0,0.00041369,31]
[312593382,1706041846972,-500.0,0.00041369,31]
[312593383,1706041846981,-500.0,0.00041369,31]
[312593384,1706041846990,-637.29,0.00041369,31]
[312593385,1706041846999,-500.0,0.00041369,31]
[312593386,1706041847008,-393.14492439,0.00041369,31]
[312593387,1706041847019,-503.29833641,0.00041369,31]
[312593388,1706041847028,-1000.0,0.00041369,2]
[312593389,1706041847038,-540.07505403,0.00041369,31]
[312593390,1706041847048,-500.0,0.00041369,31]
[312593391,1706041847058,-301.97481586,0.00041369,31]
[312593392,1706041847068,-500.0,0.00041369,31]
[312593393,1706041847077,-500.0,0.00041369,31]
[312593394,1706041847087,-500.0,0.00041369,31]
[312593395,1706041847097,-1000.0,0.00041369,2]
[312593396,1706041847106,-500.0,0.00041369,31]
[312593397,1706041847117,-500.0,0.00041369,31]
[312593398,1706041847127,-1822.93,0.00041369,2]
[312593399,1706041847136,-500.0,0.00041369,31]
[312593400,1706041847145,-500.0,0.00041369,31]
[312593401,1706041847155,-500.0,0.00041369,31]
[312593402,1706041847164,-500.0,0.00041369,31]
[312593403,1706041847173,-500.0,0.00041369,31]
[312593404,1706041847182,-500.0,0.00041369,31]
[312593405,1706041847191,-513.33304006,0.00041369,31]
[312593406,1706041847201,-500.0,0.00041369,31]
[312593407,1706041847212,-500.0,0.00041369,31]
[312593408,1706041847222,-767.27,0.00041369,31]
[312593409,1706041847231,-500.0,0.00041369,31]
[312593410,1706041847240,-527.48654549,0.00041369,31]
[312593411,1706041847249,-500.0,0.00041369,31]
[312593412,1706041847259,-502.78782869,0.00041369,31]
[312593413,1706041847268,-500.0,0.00041369,31]
[312593414,1706041847278,-503.30908677,0.00041369,31]
[312593415,1706041847289,-500.0,0.00041369,31]
[312593416,1706041847298,-500.0,0.00041369,31]
[312593417,1706041847307,-500.0,0.00041369,31]
[312593418,1706041847317,-500.0,0.00041369,31]
[312593419,1706041847327,-1000.0,0.00041369,5]
[312593420,1706041847337,-500.0,0.00041369,31]
[312593421,1706041847346,-500.0,0.00041369,31]
[312593422,1706041847357,-503.12447277,0.00041369,31]
[312593423,1706041847366,-500.0,0.00041369,31]
[312593424,1706041847375,-852.25,0.00041369,31]
[312593425,1706041847386,-500.0,0.00041369,31]
[312593426,1706041847396,-500.0,0.00041369,31]
[312593427,1706041847407,-517.2469831,0.00041369,31]
[312593428,1706041847416,-500.0,0.00041369,31]
[312593429,1706041847425,-500.0,0.00041369,31]
[312593430,1706041847435,-248.97037941,0.00041369,31]
[312593431,1706041847445,-500.0,0.00041369,30]
[312593432,1706041847454,-500.0,0.00041369,31]
[312593433,1706041847464,-500.0,0.00041369,31]
[312593434,1706041847474,-500.0,0.00041369,31]
[312593435,1706041847483,-500.0,0.00041369,31]
[312593436,1706041847493,-500.0,0.00041369,31]
[312593437,1706041847502,-500.0,0.00041369,31]
[312593438,1706041847512,-500.0,0.00041369,31]
[312593439,1706041847521,-500.0,0.00041369,31]
[312593440,1706041847530,-500.0,0.00041369,31]
[312593441,1706041847539,-500.0,0.00041369,31]
[312593442,1706041847548,-775.99,0.00041369,31]
[312593443,1706041847558,-500.0,0.00041369,31]
[312593444,1706041847569,-524.44,0.00041369,20]
[312593445,1706041847578,-500.0,0.00041369,31]
[312593446,1706041847587,-500.0,0.00041369,31]
[312593447,1706041847598,-500.0,0.00041369,31]
[312593448,1706041847608,-500.0,0.00041369,31]
[312593449,1706041847619,-500.0,0.00041369,31]
[312593450,1706041847628,-500.0,0.00041369,31]
[312593451,1706041847638,-661.63,0.00041369,31]
[312593452,1706041847646,-1224.28,0.00041369,31]
[312593453,1706041847656,-500.0,0.00041369,31]
[312593454,1706041847665,-500.0,0.00041369,31]
[312593455,1706041847676,-500.0,0.00041369,31]
[312593456,1706041847686,-500.0,0.00041369,31]
[312593457,1706041847695,-671.04,0.00041369,31]
[312593458,1706041847705,-821.18,0.00041369,31]
[312593459,1706041847714,-500.0,0.00041369,31]
[312593460,1706041847724,-500.0,0.00041369,31]
[312593461,1706041847734,-500.0,0.00041369,31]
[312593462,1706041847744,-500.0,0.00041369,31]
[312593463,1706041847753,-301.64755627,0.00041369,31]
[312593464,1706041847763,-500.0,0.00041369,31]
[312593465,1706041847772,-500.0,0.00041369,31]
[312593466,1706041847782,-500.0,0.00041369,31]
[312593467,1706041847791,-500.0,0.00041369,31]
[312593468,1706041847800,-500.0,0.00041369,31]
[312593469,1706041847809,-500.0,0.00041369,31]
[312593470,1706041847819,-879.9,0.00041369,31]
[312593471,1706041847830,-500.0,0.00041369,31]
[312593472,1706041847839,-500.0,0.00041369,31]
[312593473,1706041847849,-500.0,0.00041369,31]
[312593474,1706041847858,-500.0,0.00041369,31]
[312593475,1706041847867,-500.0,0.00041369,31]
[312593476,1706041847877,-500.0,0.00041369,31]
[312593477,1706041847886,-500.0,0.00041369,2]
[312593478,1706041847895,-760.01,0.00041369,31]
[312593479,1706041847904,-3130.62,0.00041369,31]
[312593480,1706041847913,-500.0,0.00041369,31]
[312593481,1706041847922,-229.86827341,0.00041369,31]
[312593482,1706041847931,-500.0,0.00041369,2]
[312593483,1706041847940,-150.0,0.00041369,31]
[312593484,1706041847949,-515.7,0.00041369,31]
[312593485,1706041847960,-1379.9,0.00041369,31]
[312593486,1706041847969,-500.0,0.00041369,31]
[312593487,1706041847978,-500.0,0.00041369,31]
[312593488,1706041847987,-1336.33,0.00041369,31]
[312593489,1706041847996,-560.07407215,0.00041369,31]
[312593490,1706041848005,-506.77282223,0.00041369,31]
[312593491,1706041848015,-601.97701158,0.00041369,31]
[312593492,1706041848026,-922.17,0.00041369,31]
[312593493,1706041848036,-500.0,0.00041369,31]
[312593494,1706041848045,-500.0,0.00041369,31]
[312593495,1706041848055,-500.0,0.00041369,31]
[312593496,1706041848065,-3933.27,0.00041369,31]
[312593497,1706041848074,-500.0,0.00041369,31]
[312593498,1706041848083,-500.0,0.00041369,31]
[312593499,1706041848093,-500.0,0.00041369,31]
[312593500,1706041848104,-500.0,0.00041369,31]
[312593501,1706041848190,-500.0,0.00041369,31]
[312593502,1706041848201,-500.0,0.00041369,31]
[312593503,1706041848212,-500.0,0.00041369,31]
[312593504,1706041848221,-500.0,0.00041369,31]
[312593505,1706041848230,-500.0,0.00041369,31]
[312593506,1706041848241,-500.0,0.00041369,31]
[312593507,1706041848250,-505.14132198,0.00041369,31]
[312593508,1706041848259,-577.52,0.00041369,31]
[312593509,1706041848268,-500.0,0.00041369,31]
[312593510,1706041848277,-500.0,0.00041369,31]
[312593511,1706041848287,-500.0,0.00041369,31]
[312593512,1706041848296,-500.0,0.00041369,31]
[312593513,1706041848305,-500.0,0.00041369,31]
[312593514,1706041848315,-665.87,0.00041369,31]
[312593515,1706041848324,-500.0,0.00041369,31]
[312593516,1706041848333,-501.33914629,0.00041369,31]
[312593517,1706041848343,-500.0,0.00041369,31]
[312593518,1706041848352,-956.77,0.00041369,31]
[312593519,1706041848361,-920.61,0.00041369,31]
[312593520,1706041848370,-500.0,0.00041369,31]
[312593521,1706041848380,-500.0,0.00041369,31]
[312593522,1706041848390,-500.0,0.00041369,31]
[312593523,1706041848400,-339.43796185,0.00041369,31]
[312593524,1706041848411,-500.0,0.00041369,31]
[312593525,1706041848420,-502.14942184,0.00041369,31]
[312593526,1706041848429,-915.24,0.00041369,31]
[312593527,1706041848440,-509.52610075,0.00041369,31]
[312593528,1706041848449,-500.0,0.00041369,31]
[312593529,1706041848458,-500.0,0.00041369,31]
[312593530,1706041848468,-502.46486111,0.00041369,31]
[312593531,1706041848478,-717.45,0.00041369,31]
[312593532,1706041848488,-500.0,0.00041369,31]
[312593533,1706041848497,-571.51638023,0.00041369,31]
[312593534,1706041848506,-2457.77,0.00041369,31]
[312593535,1706041848516,-500.0,0.00041369,31]
[312593536,1706041848525,-500.0,0.00041369,31]
[312593537,1706041848534,-500.0,0.00041369,31]
[312593538,1706041848543,-500.0,0.00041369,31]
[312593539,1706041848552,-1895.37,0.00041369,31]